bitfinex/quotes_ETHUSD_20240902
["timestamp","ask_amount","ask_price","bid_price","bid_amount"]
[1725281494762,7.90534,2530.0,2529.4,5.80090362]
[1725281495083,3.95275,2529.9,2529.4,5.80090362]
[1725281495296,3.95275,2529.9,2529.4,4.83876536]
[1725281497351,3.95275,2529.9,2529.5,0.41551766]
[1725281497713,3.95255,2530.1,2529.5,0.0790576]
[1725281497849,3.95237,2530.2,2529.5,0.0790576]
[1725281498047,3.95258,2530.0,2529.5,0.0790576]
[1725281498471,3.95258,2530.0,2529.6,0.41549479]
[1725281498692,3.95258,2530.0,2529.5,0.0790576]
[1725281499045,3.95274,2529.9,2529.4,0.07905764]
[1725281501951,3.95258,2530.0,2529.4,0.07905764]
[1725281501952,3.95256,2530.0,2529.4,0.07905764]
[1725281502126,3.95256,2530.0,2529.4,1.19028708]
[1725281502323,3.95256,2530.0,2529.4,4.19028708]
[1725281502324,7.90524,2530.0,2529.4,4.19028708]
[1725281502871,7.90521,2530.0,2529.4,4.19028708]
[1725281505053,3.95273,2529.9,2529.4,4.19028708]
[1725281505249,3.95273,2529.9,2529.4,3.07905764]
[1725281507251,3.95292,2529.8,2529.4,3.07905764]
[1725281507555,3.95292,2529.8,2529.4,0.07905764]
[1725281508627,3.95312,2529.7,2529.4,0.07905764]
[1725281509818,7.90624,2529.7,2529.4,0.07905764]
[1725281510148,3.9532,2529.6,2529.4,0.07905764]
[1725281512459,3.95305,2529.7,2529.4,3.07905764]
[1725281513467,3.95321,2529.6,2529.4,3.07905764]
[1725281513764,7.9065,2529.6,2529.4,3.07905764]
[1725281513921,3.95321,2529.6,2529.4,3.07905764]
[1725281514864,7.90653,2529.6,2529.4,3.07905764]
[1725281515013,7.90653,2529.6,2529.4,0.07905764]
[1725281515357,3.95305,2529.7,2529.5,3.0]
[1725281515569,3.95301,2529.8,2529.6,2.3212]
[1725281516016,3.95319,2529.6,2529.5,0.07905653]
[1725281516215,3.95319,2529.6,2529.5,3.62905653]
[1725281517862,3.95301,2529.8,2529.5,3.62905653]
[1725281518051,3.95301,2529.8,2529.6,3.0]
[1725281518240,3.95301,2529.8,2529.5,3.62905653]
[1725281518747,3.95304,2529.7,2529.5,3.62905653]
[1725281520257,3.95301,2529.8,2529.5,3.62905653]
[1725281520258,3.95265,2530.0,2529.5,4.22408218]
[1725281520467,3.95265,2530.0,2529.6,0.55]
[1725281520468,3.95283,2529.9,2529.6,0.55]
[1725281520662,3.95283,2529.9,2529.7,0.07905135]
[1725281521685,3.95288,2529.8,2529.6,0.55]
[1725281521888,3.95311,2529.7,2529.5,3.07905187]
[1725281522034,3.95311,2529.7,2529.5,0.07905187]
[1725281522572,3.95319,2529.6,2529.5,0.07905187]
[1725281522877,3.95319,2529.6,2529.5,0.62905187]
[1725281523073,3.95319,2529.6,2529.5,3.62905187]
[1725281531171,3.95308,2529.7,2529.5,3.62905187]
[1725281532670,3.95319,2529.6,2529.5,3.62905187]
[1725281535476,3.95288,2529.8,2529.5,3.62905187]
[1725281535671,7.90585,2529.8,2529.5,3.62905187]
[1725281535902,7.90589,2529.8,2529.5,3.62905187]
[1725281536084,3.95311,2529.7,2529.5,3.62905187]
[1725281540179,3.9527,2530.0,2529.5,3.62905187]
[1725281540527,3.95289,2529.8,2529.5,3.62905187]
[1725281541220,3.95267,2530.0,2529.5,3.62905187]
[1725281541405,7.90474,2530.2,2529.6,3.24662565]
[1725281541594,3.95227,2530.2,2529.8,2.4604]
[1725281541834,3.95227,2530.2,2529.9,1.57827679]
[1725281542136,3.95205,2530.4,2530.0,2.4604]
[1725281542435,3.95218,2530.3,2530.0,5.4604]
[1725281544236,3.95226,2530.2,2530.0,5.4604]
[1725281544536,4.0785926,2530.6,2530.1,0.55]
[1725281544752,4.0785926,2530.6,2530.1,3.55]
[1725281544753,3.95194,2530.4,2530.1,3.55]
[1725281545329,3.95194,2530.4,2530.2,0.67063633]
[1725281545876,3.95194,2530.4,2530.1,3.55]
[1725281547429,3.95179,2530.5,2530.1,3.55]
[1725281550877,0.1268626,2530.6,2530.1,3.55]
[1725281551177,3.95217,2530.3,2530.1,3.55]
[1725281551557,7.90439,2530.3,2530.1,3.55]
[1725281551745,3.95225,2530.2,2530.1,3.55]
[1725281552146,3.95217,2530.3,2530.1,3.55]
[1725281552379,3.95225,2530.2,2530.1,3.55]
[1725281552581,3.95225,2530.2,2530.1,3.0]
[1725281552754,3.95225,2530.2,2530.0,5.4604]
[1725281554494,3.95241,2530.1,2530.0,5.4604]
[1725281554691,3.95241,2530.1,2530.0,6.0104]
[1725281555676,3.95241,2530.1,2530.0,3.55]
[1725281555981,3.95241,2530.1,2530.0,0.55]
[1725281556193,3.95241,2530.1,2529.9,0.55]
[1725281556900,3.95256,2530.0,2529.9,0.55]
[1725281557097,3.95241,2530.1,2529.9,0.55]
[1725281557380,3.95241,2530.1,2529.9,2.30970672]
[1725281557567,3.95241,2530.1,2529.9,0.55]
[1725281559392,3.95227,2530.2,2530.0,2.4956]
[1725281559594,3.95227,2530.2,2530.0,5.4956]
[1725281559745,7.9044,2530.3,2530.1,2.3965]
[1725281559949,3.95225,2530.2,2530.1,5.3965]
[1725281560287,3.9522,2530.3,2530.1,5.9465]
[1725281560489,7.90442,2530.3,2530.1,5.3965]
[1725281560661,7.90438,2530.3,2530.1,5.3965]
[1725281560859,3.95218,2530.3,2530.2,0.55]
[1725281561084,3.95196,2530.4,2530.2,3.55]
[1725281561764,7.90399,2530.4,2530.2,3.55]
[1725281562113,3.95206,2530.4,2530.2,3.55]
[1725281563296,3.95206,2530.4,2530.2,4.29494301]
[1725281564499,3.9518,2530.5,2530.2,4.29494301]
[1725281565215,3.9518,2530.5,2530.2,4.70971998]
[1725281565593,3.9518,2530.5,2530.2,4.29494301]
[1725281565807,3.95196,2530.4,2530.2,4.29494301]
[1725281566180,3.95196,2530.4,2530.2,4.70972534]
[1725281566383,7.90404,2530.4,2530.2,3.55]
[1725281566644,3.9521,2530.3,2530.2,3.55]
[1725281572793,3.9521,2530.3,2530.2,0.55]
[1725281574927,7.9045,2530.2,2530.1,3.0]
[1725281575082,7.9051,2530.1,2530.0,3.0]
[1725281575290,7.9051,2530.1,2530.0,3.55]
[1725281575607,7.9051,2530.1,2530.0,3.0]
[1725281575815,3.95294,2529.8,2529.6,2.4298]
[1725281575998,3.95294,2529.8,2529.7,4.0]
[1725281576191,3.95294,2529.8,2529.7,7.0]
[1725281576823,3.95273,2529.9,2529.7,7.0]
[1725281576996,3.95273,2529.9,2529.8,3.55]
[1725281577196,3.95273,2529.9,2529.8,7.55]
[1725281577413,3.95273,2529.9,2529.8,3.55]
[1725281578028,3.95258,2530.0,2529.8,0.55]
[1725281578208,7.90494,2530.1,2529.9,2.3264]
[1725281578399,3.95241,2530.1,2529.9,5.3264]
[1725281579043,7.90495,2530.1,2529.9,5.3264]
[1725281579598,3.95256,2530.0,2529.9,5.3264]
[1725281579798,3.95256,2530.0,2529.9,5.8764]
[1725281580766,3.95256,2530.0,2529.9,3.55]
[1725281581034,3.95256,2530.0,2529.9,0.55]
[1725281581238,7.90512,2530.0,2529.9,3.55]
[1725281581441,7.90512,2530.0,2529.9,0.55]
[1725281582139,3.95272,2529.9,2529.6,3.0]
[1725281582350,3.95289,2529.8,2529.7,0.55]
[1725281582645,3.95283,2529.9,2529.6,3.40193307]
[1725281582797,3.95283,2529.9,2529.7,0.57620331]
[1725281583437,3.95288,2529.8,2529.6,3.40193307]
[1725281583817,3.95288,2529.8,2529.7,0.55]
[1725281586139,7.90583,2529.8,2529.7,0.55]
[1725281590947,7.90606,2529.7,2529.6,3.0]
[1725281591119,3.95344,2529.5,2529.3,5.48475953]
[1725281591300,3.95344,2529.5,2529.4,0.55]
[1725281591607,3.95344,2529.5,2529.4,3.55]
[1725281591807,3.95344,2529.5,2529.4,3.62906128]
[1725281593652,3.9532,2529.6,2529.4,3.62906128]
[1725281593823,3.9532,2529.6,2529.5,0.66562479]
[1725281594024,3.9532,2529.6,2529.5,1.21562479]
[1725281594351,3.95335,2529.5,2529.4,3.0]
[1725281594552,7.9067,2529.5,2529.4,3.55]
[1725281597042,7.9067,2529.5,2529.4,0.55]
[1725281597243,7.9067,2529.5,2529.4,3.0]
[1725281597426,7.9067,2529.5,2529.4,3.55]
[1725281598046,7.9067,2529.5,2529.4,0.55]
[1725281598372,7.9067,2529.5,2529.4,3.0]
[1725281598648,7.9067,2529.5,2529.4,0.55]
[1725281608002,7.90145403,2529.5,2529.4,0.55]
[1725281623780,7.90732,2529.3,2529.2,3.55]
[1725281623933,7.90732,2529.3,2529.2,0.55]
[1725281626295,7.90732,2529.3,2529.2,2.8866]
[1725281626456,7.90732,2529.3,2529.2,5.8866]
[1725281626817,7.90732,2529.3,2529.2,6.902726]
[1725281627794,3.95285,2529.9,2529.3,2.3366]
[1725281628009,3.95296,2529.8,2529.4,1.32723231]
[1725281628288,2.4081,2529.9,2529.4,1.24817938]
[1725281628499,3.95319,2529.6,2529.5,0.0790545]
[1725281628706,3.95315,2529.7,2529.5,1.06177773]
[1725281628861,3.95315,2529.7,2529.6,2.85477777]
[1725281629052,7.90563,2529.9,2529.6,6.40477777]
[1725281629253,3.95288,2529.8,2529.7,0.55]
[1725281629553,3.95288,2529.8,2529.7,4.25338323]
[1725281629747,3.95248,2530.1,2529.8,2.3936]
[1725281629952,3.95248,2530.1,2529.9,0.62904466]
[1725281630184,3.95248,2530.1,2529.9,3.62904466]
[1725281630365,5.71218672,2530.1,2530.0,0.90226447]
[1725281630590,5.71218672,2530.1,2530.0,1.45226447]
[1725281631368,9.66473672,2530.1,2530.0,0.90226447]
[1725281633959,3.95217,2530.3,2530.0,1.45226447]
[1725281634189,3.95217,2530.3,2530.1,0.94022645]
[1725281635110,3.95237,2530.2,2530.1,0.94022645]
[1725281635267,3.95217,2530.3,2530.1,0.94022645]
[1725281635470,3.95225,2530.2,2530.1,3.94022645]
[1725281636095,5.71195672,2530.2,2530.1,3.55]
[1725281636716,3.95256,2530.0,2529.9,3.0]
[1725281636881,3.95256,2530.0,2529.9,0.55]
[1725281636882,5.71226672,2530.0,2529.9,0.55]
[1725281637090,9.66482672,2530.0,2529.9,0.55]
[1725281637270,3.95289,2529.8,2529.7,0.55]
[1725281640296,9.66548672,2529.8,2529.7,0.55]
[1725281640635,3.9534,2529.5,2529.3,3.0]
[1725281640847,3.9534,2529.5,2529.4,4.55]
[1725281641331,3.95324,2529.6,2529.4,4.55]
[1725281641688,3.95335,2529.5,2529.4,0.55]
[1725281642027,3.95335,2529.5,2529.3,0.55]
[1725281642533,3.9535,2529.4,2529.3,3.55]
[1725281642987,7.907,2529.4,2529.3,3.55]
[1725281643195,7.907,2529.4,2529.3,0.55]
[1725281643397,3.95371,2529.3,2529.2,0.55]
[1725281644092,3.9535,2529.4,2529.2,0.55]
[1725281644601,3.95335,2529.5,2529.2,0.55]
[1725281644934,3.95329,2529.6,2529.4,2.3386]
[1725281645106,3.95304,2529.7,2529.5,0.55]
[1725281645300,3.95304,2529.7,2529.5,3.55]
[1725281646298,3.95299,2529.8,2529.5,3.55]
[1725281646539,3.95268,2530.0,2529.7,2.4583]
[1725281646540,3.95266,2530.0,2529.7,2.4583]
[1725281646738,3.95264,2530.0,2529.8,0.62904903]
[1725281647041,7.90531,2530.0,2529.8,0.62904903]
[1725281647247,7.90531,2530.0,2529.8,3.62904903]
[1725281648203,3.95272,2529.9,2529.8,3.55]
[1725281648400,7.90544,2529.9,2529.8,3.55]
[1725281648943,7.90544,2529.9,2529.8,3.0]
[1725281649244,3.95319,2529.6,2529.5,2.3384]
[1725281649534,3.95319,2529.6,2529.5,2.8884]
[1725281649739,3.95319,2529.6,2529.5,5.8884]
[1725281650542,3.95319,2529.6,2529.5,3.55]
[1725281650838,3.95319,2529.6,2529.5,0.55]
[1725281651145,3.95319,2529.6,2529.4,0.55]
[1725281652257,3.95335,2529.5,2529.4,0.55]
[1725281656245,3.95319,2529.6,2529.4,0.55]
[1725281656418,7.90648,2529.6,2529.4,0.55]
[1725281656628,7.90646,2529.6,2529.4,0.55]
[1725281656945,3.95335,2529.5,2529.4,0.55]
[1725281658042,3.95306,2529.7,2529.4,3.48329602]
[1725281658232,3.95306,2529.7,2529.5,3.0]
[1725281658437,3.95306,2529.7,2529.6,0.55]
[1725281660523,3.95274,2529.9,2529.7,2.3489]
[1725281660739,3.95274,2529.9,2529.8,0.55]
[1725281660908,3.95274,2529.9,2529.8,3.55]
[1725281664608,3.95264,2530.0,2529.8,3.55]
[1725281664843,3.95264,2530.0,2529.9,0.58989]
[1725281665055,3.95264,2530.0,2529.9,1.13989]
[1725281667005,3.95242,2530.1,2529.9,1.13989]
[1725281667208,3.95242,2530.1,2530.0,0.55]
[1725281667653,3.95242,2530.1,2529.9,0.55]
[1725281668449,3.95256,2530.0,2529.9,0.55]
[1725281671226,7.90512,2530.0,2529.9,0.55]
[1725281674665,3.953,2529.8,2529.7,0.55]
[1725281675758,3.9535,2529.4,2529.3,0.4953853]
[1725281675925,3.95366,2529.3,2529.2,2.8140853]
[1725281676722,3.95381,2529.2,2529.1,1.64974437]
[1725281676936,3.95397,2529.1,2529.0,4.13824437]
[1725281677151,3.95397,2529.1,2529.0,2.98398944]
[1725281678049,3.95397,2529.1,2529.0,3.47950018]
[1725281678352,3.95397,2529.1,2529.0,5.98401074]
[1725281678516,3.95397,2529.1,2529.0,6.53401074]
[1725281678716,3.95397,2529.1,2529.0,6.0385]
[1725281679933,7.90794,2529.1,2529.0,6.0385]
[1725281681628,7.90794,2529.1,2529.0,3.55]
[1725281681957,7.90794,2529.1,2529.0,0.55]
[1725281690737,11.86191,2529.1,2529.0,0.55]
[1725281690937,13.62161672,2529.1,2529.0,0.55]
[1725281691359,7.90856,2528.9,2528.8,0.55]
[1725281692151,7.90856,2528.9,2528.7,3.0]
[1725281692375,3.95414,2529.0,2528.5,3.41431507]
[1725281692376,3.95475,2528.6,2528.5,3.41431507]
[1725281692536,7.9095,2528.6,2528.5,3.0]
[1725281692740,3.95491,2528.5,2528.4,5.4377]
[1725281692976,3.95491,2528.5,2528.4,2.93749617]
[1725281693146,3.95491,2528.5,2528.4,5.93749617]
[1725281693559,3.95491,2528.5,2528.4,6.48749617]
[1725281695215,7.90982,2528.5,2528.4,6.48749617]
[1725281695420,7.90982,2528.5,2528.4,3.55]
[1725281695624,7.90982,2528.5,2528.4,0.55]
[1725281695918,5.71430672,2528.7,2528.2,22.2528]
[1725281695919,3.95507,2528.4,2528.3,0.55]
[1725281696512,5.71430672,2528.7,2528.2,19.79]
[1725281696513,3.95522,2528.3,2528.2,19.79]
[1725281696685,3.95548,2528.2,2528.0,2.4628]
[1725281697013,3.95553,2528.1,2528.0,2.4628]
[1725281697577,3.95553,2528.1,2528.0,3.0128]
[1725281697787,3.95553,2528.1,2528.0,6.0128]
[1725281700485,3.9554,2528.2,2528.0,6.0128]
[1725281700685,3.9554,2528.2,2528.1,3.55]
[1725281701326,3.95526,2528.3,2528.1,3.55]
[1725281701327,3.955,2528.5,2528.1,3.62910291]
[1725281701528,3.95476,2528.6,2528.3,2.4582]
[1725281701819,3.95476,2528.6,2528.4,0.62908909]
[1725281702194,3.95437,2528.9,2528.5,2.3072]
[1725281702380,3.95437,2528.9,2528.6,0.62908149]
[1725281702725,7.90875,2528.9,2528.6,3.62908149]
[1725281702951,7.90875,2528.9,2528.7,0.65450104]
[1725281703086,3.95436,2528.9,2528.8,0.55]
[1725281704617,3.95436,2528.9,2528.7,0.55]
[1725281704786,3.95444,2528.8,2528.7,0.55]
[1725281705130,3.95444,2528.8,2528.7,4.55]
[1725281705480,7.90888,2528.8,2528.7,7.55]
[1725281706523,7.90888,2528.8,2528.7,7.0]
[1725281707604,7.90888,2528.8,2528.7,3.0]
[1725281707785,3.95496,2528.5,2528.3,3.0]
[1725281707985,3.95496,2528.5,2528.4,4.55]
[1725281708215,3.95496,2528.5,2528.4,7.55]
[1725281709087,4.35096,2528.5,2528.4,7.55]
[1725281710127,0.396,2528.5,2528.4,7.55]
[1725281710338,0.396,2528.5,2528.4,9.46107162]
[1725281711590,0.396,2528.5,2528.4,15.76954162]
[1725281712436,0.396,2528.5,2528.4,19.72461162]
[1725281712888,0.396,2528.5,2528.4,39.51461162]
[1725281714562,0.396,2528.5,2528.4,43.46968162]
[1725281714763,0.396,2528.5,2528.4,43.83904976]
[1725281714923,0.396,2528.5,2528.4,44.33457747]
[1725281716862,0.396,2528.5,2528.4,45.98432184]
[1725281717267,0.396,2528.5,2528.4,44.33457747]
[1725281717424,0.396,2528.5,2528.4,45.98432184]
[1725281717620,0.396,2528.5,2528.4,44.33457747]
[1725281717962,0.396,2528.5,2528.4,45.98432184]
[1725281718259,0.396,2528.5,2528.4,40.37950747]
[1725281718564,0.396,2528.5,2528.4,41.53381706]
[1725281719683,0.396,2528.5,2528.4,42.02936408]
[1725281719818,0.396,2528.5,2528.4,40.37961971]
[1725281720020,0.396,2528.5,2528.4,42.02936408]
[1725281720462,0.396,2528.5,2528.4,42.02934843]
[1725281720663,0.396,2528.5,2528.4,37.53380141]
[1725281720957,0.396,2528.5,2528.4,32.42454312]
[1725281721525,0.396,2528.5,2528.4,34.07428749]
[1725281721724,0.396,2528.5,2528.4,38.07428749]
[1725281722123,0.396,2528.5,2528.4,27.6550015]
[1725281722342,0.396,2528.5,2528.4,26.79]
[1725281722749,4.35091,2528.5,2528.4,27.15956198]
[1725281722956,4.35091,2528.5,2528.4,26.79]
[1725281723122,4.35091,2528.5,2528.4,22.79]
[1725281723342,8.30582,2528.5,2528.4,26.79]
[1725281724627,8.30582,2528.5,2528.4,27.34]
[1725281724827,8.30582,2528.5,2528.4,7.55]
[1725281729593,8.30582,2528.5,2528.4,3.55]
[1725281729742,8.30582,2528.5,2528.4,0.55]
[1725281729944,7.91048,2528.3,2528.2,0.55]
[1725281732600,7.91048,2528.3,2528.2,4.55]
[1725281732902,7.91048,2528.3,2528.2,7.55]
[1725281739391,7.91048,2528.3,2528.2,3.55]
[1725281739896,11.86572,2528.3,2528.2,3.55]
[1725281740456,11.86572,2528.3,2528.2,0.55]
[1725281740655,3.95567,2528.1,2528.0,0.55]
[1725281740869,3.95567,2528.1,2528.0,4.55]
[1725281741081,3.95567,2528.1,2528.0,7.55]
[1725281741914,7.91134,2528.1,2528.0,7.55]
[1725281746658,8.30734,2528.1,2528.0,7.55]
[1725281751065,10.70074,2528.1,2528.0,3.55]
[1725281751250,16.41611672,2528.1,2528.0,0.55]
[1725281751419,8.50477672,2528.1,2527.8,0.55]
[1725281751621,8.50477672,2528.1,2527.8,4.55]
[1725281751920,7.912,2527.8,2527.7,0.36967331]
[1725281752695,3.95647,2527.5,2527.4,7.41]
[1725281752929,3.95647,2527.5,2527.3,19.79]
[1725281752930,3.95663,2527.4,2527.3,19.79]
[1725281753126,3.95663,2527.4,2527.3,25.42932215]
[1725281753307,3.95663,2527.4,2527.3,26.07475785]
[1725281753527,3.95663,2527.4,2527.3,25.56478]
[1725281753953,3.95663,2527.4,2527.3,26.62474149]
[1725281754578,3.95663,2527.4,2527.3,25.97931583]
[1725281756339,3.95663,2527.4,2527.3,23.75453583]
[1725281756537,7.91326,2527.4,2527.3,23.20453583]
[1725281756748,7.91326,2527.4,2527.3,3.41453583]
[1725281757247,7.91326,2527.4,2527.3,3.41456673]
[1725281757397,7.91326,2527.4,2527.3,3.0]
[1725281757593,7.91326,2527.4,2527.2,5.4578]
[1725281757594,3.95679,2527.3,2527.2,5.4578]
[1725281758222,3.95679,2527.3,2527.2,6.0078]
[1725281760058,3.95679,2527.3,2527.2,3.55]
[1725281760266,3.95679,2527.3,2527.2,0.55]
[1725281768066,0.396,2527.4,2527.2,1.13527]
[1725281768270,0.396,2527.4,2527.3,10.93510296]
[1725281768791,0.396,2527.4,2527.3,13.93510296]
[1725281768980,0.396,2527.4,2527.3,15.8296211]
[1725281769272,0.396,2527.4,2527.3,16.84494538]
[1725281769472,0.396,2527.4,2527.3,15.8296211]
[1725281769777,0.396,2527.4,2527.3,16.84461608]
[1725281770473,0.396,2527.4,2527.3,18.49436045]
[1725281771274,0.396,2527.4,2527.3,22.45115045]
[1725281771579,0.396,2527.4,2527.3,20.80140608]
[1725281771734,0.396,2527.4,2527.3,22.44990448]
[1725281772675,0.396,2527.4,2527.3,20.80140608]
[1725281772831,0.396,2527.4,2527.3,22.86128141]
[1725281773662,0.396,2527.4,2527.3,22.86200311]
[1725281773856,0.396,2527.4,2527.3,20.80107095]
[1725281774084,0.396,2527.4,2527.3,22.86200311]
[1725281776090,0.396,2527.4,2527.3,21.84734326]
[1725281776266,0.396,2527.4,2527.3,22.86208686]
[1725281777142,0.396,2527.4,2527.3,21.84734326]
[1725281777348,0.396,2527.4,2527.3,22.86208585]
[1725281778582,0.396,2527.4,2527.3,22.86057943]
[1725281778940,0.396,2527.4,2527.3,22.86051839]
[1725281779180,0.396,2527.4,2527.3,20.80115369]
[1725281779851,0.396,2527.4,2527.3,20.80088398]
[1725281782568,0.396,2527.4,2527.3,21.19738398]
[1725281784276,0.396,2527.4,2527.3,40.98738398]
[1725281786477,0.396,2527.4,2527.3,37.03059398]
[1725281787386,0.396,2527.4,2527.3,37.03007114]
[1725281788878,0.396,2527.4,2527.3,36.61940251]
[1725281789269,0.396,2527.4,2527.3,36.20734216]
[1725281790120,0.396,2527.4,2527.3,35.19339212]
[1725281790289,0.396,2527.4,2527.3,32.2501797]
[1725281792790,0.396,2527.4,2527.3,30.60138572]
[1725281793333,0.396,2527.4,2527.3,29.58780814]
[1725281793539,0.396,2527.4,2527.3,30.60116017]
[1725281794525,0.396,2527.4,2527.3,32.66195286]
[1725281794879,0.396,2527.4,2527.3,30.60116017]
[1725281795078,0.396,2527.4,2527.3,32.66195286]
[1725281796017,0.396,2527.4,2527.3,32.26545286]
[1725281796612,0.396,2527.4,2527.3,31.62131633]
[1725281796831,0.396,2527.4,2527.3,32.26580763]
[1725281797324,0.396,2527.4,2527.3,32.26578926]
[1725281798283,0.396,2527.4,2527.3,30.20499657]
[1725281798606,0.396,2527.4,2527.3,32.26653515]
[1725281798808,0.396,2527.4,2527.3,31.85442502]
[1725281799393,0.396,2527.4,2527.3,32.35020137]
[1725281800227,0.396,2527.4,2527.3,30.84073659]
[1725281800381,0.396,2527.4,2527.3,31.85440457]
[1725281800580,0.396,2527.4,2527.3,24.35366798]
[1725281800816,2.8915,2527.4,2527.3,24.29944007]
[1725281801014,2.8915,2527.4,2527.3,23.93011058]
[1725281801216,2.8915,2527.4,2527.3,24.29958654]
[1725281802288,2.8915,2527.4,2527.3,23.2858104]
[1725281802478,2.8915,2527.4,2527.3,24.29973631]
[1725281802682,0.396,2527.4,2527.3,24.29973631]
[1725281802919,0.396,2527.4,2527.3,24.84973631]
[1725281803130,0.396,2527.4,2527.3,26.69166999]
[1725281803284,0.396,2527.4,2527.3,30.64845999]
[1725281803686,0.396,2527.4,2527.3,29.78364639]
[1725281803998,0.396,2527.4,2527.3,30.15331274]
[1725281804423,0.396,2527.4,2527.3,30.6491045]
[1725281806638,0.396,2527.4,2527.3,26.6923145]
[1725281807137,0.396,2527.4,2527.3,25.18193368]
[1725281807369,0.396,2527.4,2527.3,26.19663294]
[1725281807574,0.396,2527.4,2527.3,25.18193368]
[1725281807726,0.396,2527.4,2527.3,26.19663267]
[1725281808369,0.396,2527.4,2527.3,26.69242697]
[1725281808553,0.396,2527.4,2527.3,27.18822195]
[1725281808756,0.396,2527.4,2527.3,35.6962007]
[1725281809269,0.396,2527.4,2527.3,39.6529907]
[1725281810761,0.396,2527.4,2527.3,36.07770798]
[1725281811004,0.396,2527.4,2527.3,37.58782639]
[1725281811903,0.396,2527.4,2527.3,41.54461639]
[1725281812106,0.396,2527.4,2527.3,42.03155734]
[1725281812899,0.396,2527.4,2527.3,46.03155734]
[1725281813282,0.396,2527.4,2527.3,45.53576304]
[1725281814204,0.396,2527.4,2527.3,44.52137536]
[1725281814468,0.396,2527.4,2527.3,45.0396171]
[1725281815089,0.396,2527.4,2527.3,45.53531985]
[1725281817717,0.396,2527.4,2527.3,44.52134738]
[1725281818013,0.396,2527.4,2527.3,45.53536329]
[1725281818311,0.396,2527.4,2527.3,45.16591015]
[1725281818530,0.396,2527.4,2527.3,45.03965981]
[1725281818803,0.396,2527.4,2527.3,45.53535309]
[1725281821810,0.396,2527.4,2527.3,48.01333974]
[1725281823507,0.396,2527.4,2527.3,45.53535309]
[1725281824315,0.396,2527.4,2527.3,44.52133791]
[1725281824518,0.396,2527.4,2527.3,45.03980455]
[1725281824812,0.396,2527.4,2527.3,45.53550911]
[1725281825718,0.396,2527.4,2527.3,42.93380945]
[1725281825883,0.396,2527.4,2527.3,40.45552583]
[1725281827175,0.396,2527.4,2527.3,42.9334458]
[1725281828293,0.396,2527.4,2527.3,41.42358132]
[1725281828517,0.396,2527.4,2527.3,42.43725973]
[1725281829028,0.396,2527.4,2527.3,41.91931563]
[1725281829330,2.4104,2528.2,2527.8,3.95593]
[1725281829494,2.4104,2528.2,2527.9,4.64238459]
[1725281829682,2.4104,2528.2,2527.9,8.3233267]
[1725281830035,2.4104,2528.6,2528.1,3.95553]
[1725281830323,2.4104,2528.6,2528.2,3.62909689]
[1725281830836,2.4104,2528.6,2528.2,7.58445689]
[1725281831023,2.4104,2528.6,2528.2,11.58445689]
[1725281831182,2.4104,2528.5,2528.2,7.62909689]
[1725281833595,2.4104,2528.5,2528.2,11.58445689]
[1725281834008,2.4104,2528.5,2528.2,13.28462915]
[1725281835326,2.4104,2528.5,2528.3,3.95509]
[1725281835634,2.4104,2528.5,2528.4,3.55]
[1725281836484,2.4104,2528.5,2528.4,7.55]
[1725281838398,2.3263,2528.7,2528.4,7.55]
[1725281838729,2.3263,2528.7,2528.5,1.150509]
[1725281838928,2.3263,2528.7,2528.6,0.55]
[1725281839100,2.3263,2528.7,2528.6,3.55]
[1725281839795,2.3263,2528.7,2528.6,7.55]
[1725281844823,2.3263,2528.7,2528.6,3.55]
[1725281846440,2.3263,2528.7,2528.6,0.55]
[1725281846642,2.3263,2528.7,2528.6,4.0]
[1725281846643,6.28092,2528.7,2528.6,4.0]
[1725281846800,6.28092,2528.7,2528.6,4.55]
[1725281847449,7.90924,2528.7,2528.6,4.55]
[1725281847614,14.29586,2528.7,2528.6,4.0]
[1725281848727,6.38722,2528.3,2528.2,27.2]
[1725281848927,6.38722,2528.3,2528.2,31.2]
[1725281849620,6.38722,2528.3,2528.2,27.2]
[1725281850116,10.34244,2528.3,2528.2,27.2]
[1725281851029,10.34244,2528.3,2528.2,27.75]
[1725281851342,14.29766,2528.3,2528.2,0.55]
[1725281851555,2.4968,2527.8,2527.7,3.0]
[1725281851852,2.4968,2527.8,2527.7,3.55]
[1725281852520,10.4088,2527.8,2527.7,0.55]
[1725281852709,3.95621,2527.7,2527.6,0.55]
[1725281853044,3.95621,2527.7,2527.5,0.55]
[1725281853875,3.95632,2527.6,2527.5,0.55]
[1725281856451,2.4968,2527.8,2527.3,3.09044095]
[1725281856452,3.95663,2527.4,2527.3,3.09044095]
[1725281856946,7.91326,2527.4,2527.3,0.09044095]
[1725281857705,7.91326,2527.4,2527.3,0.64044095]
[1725281858411,3.95663,2527.4,2527.3,0.64044095]
[1725281860247,3.95663,2527.4,2527.3,0.55]
[1725281860450,3.95663,2527.4,2527.1,0.55]
[1725281860614,3.95663,2527.4,2527.1,1.65759267]
[1725281860814,3.95663,2527.4,2527.1,4.65759267]
[1725281862539,3.95663,2527.4,2527.1,1.65759267]
[1725281863066,3.95694,2527.2,2527.1,0.55]
[1725281863353,6.43374,2527.2,2527.1,0.55]
[1725281863587,6.43374,2527.2,2526.9,0.55]
[1725281863764,6.43374,2527.2,2526.9,1.300766]